[Event "CZE Extraliga 2019-20"]
[Site "Czech Republic"]
[Date "2019.12.01"]
[Round "4.7"]
[White "Vyskocil, Neklan"]
[Black "Balacek, Tadeas"]
[Result "0-1"]
[ECO "A10"]
[WhiteElo "2306"]
[BlackElo "2331"]
[Annotator "NA RC"]
[PlyCount "162"]
[EventDate "2019.09.15"]
[EventType "team-tourn"]
[EventCountry "CZE"]
[SourceTitle "playchess.com"]
[Source "ChessBase"]
[SourceQuality "1"]
[WhiteTeam "Duras"]
[BlackTeam "Lysa nad Labem"]
[TimeControl "40/5400+30:1800+30"]

1. c4 {[%emt 0:00:00]} g6 {[%emt 0:00:00]} 2. Nc3 {[%emt 0:00:15]} Bg7 {[%emt 0:00:00]} 3. g3 {[%emt 0:00:22]} e5 {[%emt 0:01:17]} 4. Bg2 {[%emt 0:00:26]} Nf6 {[%emt 0:01:19]} 5. e3 {[%emt 0:00:50]} O-O {[%emt 0:04:49]} 6. Nge2 {[%emt 0:00:22]} d6 {[%emt 0:00:44]} 7. O-O {[%emt 0:00:43]} Nbd7 {[%emt 0:06:42]} 8. d4 {[%emt 0:00:28]} c6 {[%emt 0:00:45]} 9. b3 {[%emt 0:02:31]} Qc7 {[%emt 0:01:51]} 10. Ba3 {[%emt 0:02:39]} Re8 {[%emt 0:01:32]} 11. Qc2 {[%emt 0:01:48]} Nf8 {[%emt 0:09:37]} 12. Rad1 {[%emt 0:04:04]} Bg4 {[%emt 0:02:12]} 13. dxe5 {[%emt 0:13:38]} dxe5 {[%emt 0:00:23]} 14. Bd6 {[%emt 0:03:31]} Qc8 {[%emt 0:00:20]} 15. Rd2 {[%emt 0:02:22]} h5 {[%emt 0:11:13]} 16. Nc1 {[%emt 0:18:43]} N8h7 {[%emt 0:11:25]} 17. f3 {[%emt 0:02:37]} Bf5 {[%emt 0:04:25]} 18. e4 {[%emt 0:00:29]} Bh3 {[%emt 0:01:55]} 19. Nd3 {[%emt 0:01:30]} Bxg2 {[%emt 0:05:53]} 20. Rxg2 {[%emt 0:08:27]} Nd7 {[%emt 0:04:38]} 21. Qd2 {[%emt 0:05:44]} Bf8 {[%emt 0:03:31]} 22. c5 {[%emt 0:08:26]} Bxd6 {[%emt 0:04:21]} 23. cxd6 {[%emt 0:00:36]} Re6 {[%emt 0:00:15]} 24. Nb2 {[%emt 0:04:21]} Qf8 {[%emt 0:00:20]} 25. Rd1 {[%emt 0:00:39]} Rd8 {[%emt 0:05:15]} 26. f4 {[%emt 0:01:51]} Nb6 {[%emt 0:01:03]} 27. fxe5 {[%emt 0:01:16]} Rxe5 {[%emt 0:04:03]} 28. Qf4 {[%emt 0:04:40]} Ng5 {[%emt 0:02:29]} 29. Kh1 {[%emt 0:00:15]} f6 {[%emt 0:03:38]} 30. Rgd2 {[%emt 0:00:56]} Re6 {[%emt 0:02:50]} 31. a4 {[%emt 0:03:16]} Nf7 {[%emt 0:01:15]} 32. a5 {[%emt 0:00:42]} Nd7 {[%emt 0:00:02]} 33. Qf2 {[%emt 0:05:18]} a6 {[%emt 0:02:50]} 34. Nc4 {[%emt 0:00:13]} Nde5 {[%emt 0:00:33]} 35. d7 {[%emt 0:02:35]} Nxc4 {[%emt 0:01:21]} 36. bxc4 {[%emt 0:00:02]} Qb4 {[%emt 0:00:10]} 37. Ne2 {[%emt 0:00:58]} Qxc4 {[%emt 0:03:00]} 38. Rd4 {[%emt 0:00:21]} Qc2 {[%emt 0:00:26]} 39. R1d2 {[%emt 0:00:48]} Qb1+ {[%emt 0:00:13]} 40. Rd1 {[%emt 0:00:45]} Qc2 {[%emt 0:00:39]} 41. R1d2 {[%emt 0:00:54]} Qc5 {[%emt 0:14:06]} 42. Nf4 {[%emt 0:05:31]} Rd6 {[%emt 0:00:58]} 43. Nxg6 {[%emt 0:06:23]} R8xd7 {[%emt 0:01:27]} 44. Rxd6 {[%emt 0:01:00]} Qxf2 {[%emt 0:00:07]} 45. Rxf2 {[%emt 0:00:30]} Rxd6 {[%emt 0:04:54]} 46. Nf4 {[%emt 0:01:44]} h4 {[%emt 0:04:11]} 47. gxh4 {[%emt 0:02:05]} Ne5 {[%emt 0:00:08]} 48. Nh5 {[%emt 0:05:27]} Kf7 {[%emt 0:00:29]} 49. Rb2 {[%emt 0:00:35]} Rd7 {[%emt 0:01:00]} 50. Rf2 {[%emt 0:00:43]} Ng4 {[%emt 0:02:20]} 51. Rf4 {[%emt 0:00:59]} Kg6 {[%emt 0:00:34]} 52. Rxg4+ {[%emt 0:03:20]} Kxh5 {[%emt 0:00:01]} 53. h3 {[%emt 0:01:45]} c5 {[%emt 0:01:01]} 54. Kg2 {[%emt 0:02:25]} Rc7 {[%emt 0:01:03]} 55. Rf4 {[%emt 0:01:00]} Rc6 {[%emt 0:01:12]} 56. Kg3 {[%emt 0:00:29]} c4 {[%emt 0:00:23]} 57. Rf5+ {[%emt 0:00:48]} Kh6 {[%emt 0:01:09]} 58. Kg4 {[%emt 0:00:58]} c3 {[%emt 0:00:12]} 59. Rf1 {[%emt 0:00:13]} c2 {[%emt 0:00:53]} 60. Rc1 {[%emt 0:00:02]} Kg6 {[%emt 0:01:40]} 61. Kf4 {[%emt 0:01:31]} Rc3 {[%emt 0:01:57]} 62. Kg4 {[%emt 0:00:14]} Kh6 {[%emt 0:01:08]} 63. Kf5 {[%emt 0:00:25]} Rc6 {[%emt 0:00:33]} 64. Kf4 {[%emt 0:01:16]} Kh5 {[%emt 0:00:30]} 65. Ke3 {[%emt 0:00:07]} Kxh4 {[%emt 0:00:17]} 66. Kd3 {[%emt 0:00:54]} Rc5 {[%emt 0:00:28]} 67. Rxc2 {[%emt 0:00:19]} Rxa5 {[%emt 0:00:02]} 68. Rc7 {[%emt 0:00:24]} Rb5 {[%emt 0:00:30]} 69. Rh7+ {[%emt 0:01:58]} Kg5 {[%emt 0:00:01]} 70. Kc4 {[%emt 0:00:46]} Rb1 {[%emt 0:01:36]} 71. Kd5 {[%emt 0:00:28]} a5 {[%emt 0:00:33]} 72. Rg7+ {[%emt 0:00:30]} Kh6 {[%emt 0:00:24]} 73. Rg4 {[%emt 0:00:30]} Rb6 {[%emt 0:00:28]} 74. Rh4+ {[%emt 0:00:47]} Kg5 {[%emt 0:00:17]} 75. Rg4+ {[%emt 0:00:02]} Kh5 {[%emt 0:00:07]} 76. Rg3 {[%emt 0:00:57]} Rb5+ {[%emt 0:00:59]} 77. Kc4 {[%emt 0:00:32]} Rb4+ {[%emt 0:00:07]} 78. Kd5 {[%emt 0:00:14]} a4 {[%emt 0:00:23]} 79. Rg8 {[%emt 0:00:35]} b5 {[%emt 0:01:26]} 80. Ra8 {[%emt 0:00:16]} Kh4 {[%emt 0:00:30]} 81. Rf8 {[%emt 0:00:17]} a3 {[%emt 0:00:23]} 0-1

[Event "CZE Extraliga 2019-20"]
[Site "Czech Republic"]
[Date "2019.12.01"]
[Round "4.7"]
[White "Skalsky, Alexandr"]
[Black "Konopka, Michal"]
[Result "1/2-1/2"]
[ECO "B01"]
[WhiteElo "2188"]
[BlackElo "2351"]
[Annotator "RC"]
[PlyCount "32"]
[EventDate "2019.09.15"]
[EventType "team-tourn"]
[EventCountry "CZE"]
[SourceTitle "playchess.com"]
[Source "ChessBase"]
[SourceQuality "1"]
[WhiteTeam "Ostrava"]
[BlackTeam "Kromeriz "]
[TimeControl "40/5400+30:1800+30"]

1. e4 {[%emt 0:00:00]} d5 {[%emt 0:01:31]} 2. exd5 {[%emt 0:00:00]} Qxd5 {[%emt 0:00:10]} 3. Nc3 {[%emt 0:00:00]} Qa5 {[%emt 0:00:41]} 4. d4 {[%emt 0:00:29]} Nf6 {[%emt 0:00:21]} 5. Nf3 {[%emt 0:00:32]} Bf5 {[%emt 0:00:52]} 6. Bc4 {[%emt 0:01:28]} e6 {[%emt 0:00:24]} 7. Bd2 {[%emt 0:01:23]} Bb4 {[%emt 0:01:23]} 8. a3 {[%emt 0:06:42]} Bxc3 {[%emt 0:00:38]} 9. Bxc3 {[%emt 0:00:02]} Qb6 {[%emt 0:00:07]} 10. d5 {[%emt 0:06:41]} Nbd7 {[%emt 0:22:17]} 11. dxe6 {[%emt 0:06:47]} Bxe6 {[%emt 0:07:44]} 12. Bxe6 {[%emt 0:07:22]} Qxe6+ {[%emt 0:01:01]} 13. Qe2 {[%emt 0:00:02]} Qxe2+ {[%emt 0:05:12]} 14. Kxe2 {[%emt 0:00:41]} O-O {[%emt 0:11:27]} 15. Rhd1 {[%emt 0:06:30]} Rfe8+ {[%emt 0:03:12]} 16. Kf1 {[%emt 0:00:07]} c6 {[%emt 0:08:28]} 1/2-1/2

[Event "CZE Extraliga 2019-20"]
[Site "Czech Republic"]
[Date "2019.12.03"]
[Round "4.8"]
[White "Kriebel, Tadeas"]
[Black "Svanda, Ondrej"]
[Result "1-0"]
[ECO "E01"]
[WhiteElo "2516"]
[BlackElo "2254"]
[Annotator "ChessBase"]
[PlyCount "113"]
[EventDate "2019.09.15"]
[EventType "team-tourn"]
[EventCountry "CZE"]
[SourceTitle "playchess.com"]
[Source "ChessBase"]
[SourceQuality "1"]
[WhiteTeam "Novoborsky"]
[BlackTeam "Brno"]
[WhiteTeamCountry "CZE"]
[BlackTeamCountry "CZE"]
[TimeControl "40/5400+30:1800+30"]

1. d4 {[%emt 0:00:00]} Nf6 {[%emt 0:00:00]} 2. c4 {[%emt 0:00:00]} e6 {[%emt 0:00:00]} 3. g3 {[%emt 0:00:00]} Bb4+ {[%emt 0:02:10]} 4. Nd2 {[%emt 0:00:00]} O-O {[%emt 0:02:27]} 5. Bg2 {[%emt 0:00:46]} c5 {[%emt 0:07:43]} 6. a3 {[%emt 0:04:13]} Bxd2+ {[%emt 0:00:12]} 7. Qxd2 {[%emt 0:00:04]} cxd4 {[%emt 0:00:04]} 8. Nf3 {[%emt 0:02:04]} d5 {[%emt 0:04:58]} 9. cxd5 {[%emt 0:00:14]} Qxd5 {[%emt 0:00:36]} 10. Qxd4 {[%emt 0:00:11]} Nc6 {[%emt 0:02:18]} 11. Qh4 {[%emt 0:08:08]} Qf5 {[%emt 0:16:37]} 12. O-O {[%emt 0:09:03]} Rd8 {[%emt 0:06:27]} 13. Be3 {[%emt 0:10:01]} e5 {[%emt 0:04:17]} 14. b4 {[%emt 0:12:34]} Be6 {[%emt 0:13:45]} 15. Rac1 {[%emt 0:06:54]} a6 {[%emt 0:00:30]} 16. Bb6 {[%emt 0:07:14]} Rd6 {[%emt 0:08:10]} 17. Bc5 {[%emt 0:02:00]} Rdd8 {[%emt 0:01:25]} 18. Ng5 {[%emt 0:01:34]} h6 {[%emt 0:05:55]} 19. Nxe6 {[%emt 0:00:06]} Qxe6 {[%emt 0:00:02]} 20. Qc4 {[%emt 0:04:27]} Qxc4 {[%emt 0:03:52]} 21. Rxc4 {[%emt 0:00:04]} Rd2 {[%emt 0:00:49]} 22. Re1 {[%emt 0:01:57]} Rc8 {[%emt 0:04:28]} 23. Kf1 {[%emt 0:07:09]} Nd8 {[%emt 0:07:19]} 24. Rcc1 {[%emt 0:00:37]} Ra2 {[%emt 0:02:33]} 25. Ra1 {[%emt 0:00:25]} Rxa1 {[%emt 0:01:36]} 26. Rxa1 {[%emt 0:00:04]} Nd7 {[%emt 0:01:02]} 27. Be3 {[%emt 0:00:22]} Rc7 {[%emt 0:01:15]} 28. Ke1 {[%emt 0:00:58]} Kf8 {[%emt 0:00:10]} 29. Kd2 {[%emt 0:02:46]} Ke7 {[%emt 0:00:08]} 30. Rc1 {[%emt 0:01:23]} Rxc1 {[%emt 0:00:04]} 31. Kxc1 {[%emt 0:00:05]} Kd6 {[%emt 0:00:46]} 32. Kc2 {[%emt 0:01:08]} f6 {[%emt 0:00:38]} 33. Be4 {[%emt 0:01:13]} Nc6 {[%emt 0:01:09]} 34. Kd3 {[%emt 0:01:06]} Nd8 {[%emt 0:02:05]} 35. h4 {[%emt 0:01:00]} Nc6 {[%emt 0:00:24]} 36. Kc4 {[%emt 0:01:57]} Nd8 {[%emt 0:00:54]} 37. a4 {[%emt 0:07:41]} Nc6 {[%emt 0:00:47]} 38. f4 {[%emt 0:06:16]} Nd8 {[%emt 0:00:35]} 39. Bf5 {[%emt 0:01:46]} Ne6 {[%emt 0:00:37]} 40. Be4 {[%emt 0:00:15]} Nd8 {[%emt 0:00:05]} 41. f5 {[%emt 0:07:37]} Nc6 {[%emt 0:09:50]} 42. b5 {[%emt 0:07:47]} axb5+ {[%emt 0:01:35]} 43. axb5 {[%emt 0:00:10]} Nd8 {[%emt 0:00:06]} 44. b6 {[%emt 0:01:17]} Ke7 {[%emt 0:03:08]} 45. Kb5 {[%emt 0:06:05]} Ke8 {[%emt 0:01:58]} 46. g4 {[%emt 0:01:14]} Nb8 {[%emt 0:01:25]} 47. Bc5 {[%emt 0:00:25]} Nbc6 {[%emt 0:00:30]} 48. e3 {[%emt 0:00:12]} Ne7 {[%emt 0:00:58]} 49. Bd6 {[%emt 0:00:41]} Kd7 {[%emt 0:06:29]} 50. Kc5 {[%emt 0:00:15]} Ke8 {[%emt 0:00:28]} 51. Bd3 {[%emt 0:03:06]} Ndc6 {[%emt 0:03:21]} 52. Bb5 {[%emt 0:00:00]} Kd8 {[%emt 0:00:06]} 53. Bxc6 {[%emt 0:00:30]} Nxc6 {[%emt 0:00:51]} 54. Bf8 {[%emt 0:00:05]} Ne7 {[%emt 0:02:19]} 55. Bxg7 {[%emt 0:00:16]} Ng8 {[%emt 0:00:04]} 56. Kd6 {[%emt 0:00:33]} Ke8 {[%emt 0:00:16]} 57. Ke6 {[%emt 0:00:26]} 1-0

[Event "CZE Extraliga 2019-20"]
[Site "Czech Republic"]
[Date "2019.12.01"]
[Round "4.8"]
[White "Meduna, Eduard"]
[Black "Barak, David"]
[Result "1/2-1/2"]
[ECO "A46"]
[WhiteElo "2377"]
[BlackElo "2070"]
[Annotator "NA"]
[PlyCount "83"]
[EventDate "2019.09.15"]
[EventType "team-tourn"]
[EventCountry "CZE"]
[SourceTitle "playchess.com"]
[Source "ChessBase"]
[SourceQuality "1"]
[WhiteTeam "Lysa nad Labem"]
[BlackTeam "Duras"]
[TimeControl "40/5400+30:1800+30"]

1. d4 {[%emt 0:05:01]} Nf6 {[%emt 0:00:00]} 2. Nf3 {[%emt 0:00:58]} c5 {[%emt 0:00:00]} 3. c3 {[%emt 0:01:56]} e6 {[%emt 0:00:12]} 4. Bf4 {[%emt 0:01:11]} b6 {[%emt 0:03:07]} 5. e3 {[%emt 0:01:30]} Nh5 {[%emt 0:08:56]} 6. Bg5 {[%emt 0:01:12]} Be7 {[%emt 0:08:18]} 7. Bxe7 {[%emt 0:01:19]} Qxe7 {[%emt 0:00:05]} 8. Nbd2 {[%emt 0:01:17]} Bb7 {[%emt 0:01:09]} 9. a4 {[%emt 0:00:42]} Nc6 {[%emt 0:04:04]} 10. Nc4 {[%emt 0:08:17]} Ba6 {[%emt 0:24:58]} 11. Nd6+ {[%emt 0:13:11]} Qxd6 {[%emt 0:00:20]} 12. Bxa6 {[%emt 0:00:09]} Nf6 {[%emt 0:02:03]} 13. O-O {[%emt 0:00:50]} O-O {[%emt 0:01:34]} 14. Qe2 {[%emt 0:00:49]} cxd4 {[%emt 0:08:01]} 15. exd4 {[%emt 0:01:02]} Nd5 {[%emt 0:01:42]} 16. Ne5 {[%emt 0:03:16]} Rab8 {[%emt 0:08:37]} 17. g3 {[%emt 0:05:08]} f6 {[%emt 0:03:47]} 18. Ng4 {[%emt 0:00:54]} f5 {[%emt 0:02:00]} 19. Ne5 {[%emt 0:01:05]} Nf6 {[%emt 0:05:28]} 20. Rfe1 {[%emt 0:01:56]} Ne4 {[%emt 0:04:30]} 21. Nd3 {[%emt 0:07:16]} Ne7 {[%emt 0:01:52]} 22. f3 {[%emt 0:07:58]} Ng5 {[%emt 0:02:05]} 23. f4 {[%emt 0:06:08]} Ne4 {[%emt 0:01:20]} 24. Ne5 {[%emt 0:00:41]} Nd5 {[%emt 0:01:35]} 25. Bd3 {[%emt 0:01:30]} Nef6 {[%emt 0:02:49]} 26. Nf3 {[%emt 0:02:34]} Rb7 {[%emt 0:02:34]} 27. Qe5 {[%emt 0:01:48]} Ne8 {[%emt 0:01:50]} 28. Bc4 {[%emt 0:01:27]} Qxe5 {[%emt 0:00:29]} 29. Nxe5 {[%emt 0:01:34]} Nef6 {[%emt 0:00:25]} 30. Bd3 {[%emt 0:03:43]} Rc7 {[%emt 0:00:17]} 31. Nc4 {[%emt 0:00:59]} Rb8 {[%emt 0:00:49]} 32. Ne3 {[%emt 0:00:54]} Nxe3 {[%emt 0:00:29]} 33. Rxe3 {[%emt 0:00:04]} Kf7 {[%emt 0:00:27]} 34. Re5 {[%emt 0:00:30]} Ng4 {[%emt 0:00:33]} 35. Rb5 {[%emt 0:00:46]} a6 {[%emt 0:00:32]} 36. Rb4 {[%emt 0:01:46]} Ne3 {[%emt 0:00:27]} 37. Kf2 {[%emt 0:03:02]} Nd5 {[%emt 0:00:25]} 38. Rb3 {[%emt 0:00:27]} a5 {[%emt 0:00:27]} 39. Be2 {[%emt 0:02:19]} Ke7 {[%emt 0:00:39]} 40. Bf3 {[%emt 0:00:40]} Nf6 {[%emt 0:00:30]} 41. Re1 {[%emt 0:33:38]} Rc4 {[%emt 0:05:53]} 42. Ra3 {[%emt 0:00:00]} 1/2-1/2

[Event "CZE Extraliga 2019-20"]
[Site "Czech Republic"]
[Date "2019.12.01"]
[Round "4.8"]
[White "Vrbata, Zbynek"]
[Black "Rosko, Lubos"]
[Result "1/2-1/2"]
[ECO "A72"]
[WhiteElo "2353"]
[BlackElo "2317"]
[Annotator "NA"]
[PlyCount "26"]
[EventDate "2019.09.15"]
[EventType "team-tourn"]
[EventCountry "CZE"]
[SourceTitle "playchess.com"]
[Source "ChessBase"]
[SourceQuality "1"]
[WhiteTeam "Siesta Solution Unichess "]
[BlackTeam "Pardubice"]
[TimeControl "40/5400+30:1800+30"]

1. d4 {[%emt 0:00:00]} Nf6 {[%emt 0:03:53]} 2. c4 {[%emt 0:00:00]} c5 {[%emt 0:06:12]} 3. d5 {[%emt 0:01:11]} e6 {[%emt 0:00:09]} 4. Nc3 {[%emt 0:00:20]} exd5 {[%emt 0:00:07]} 5. cxd5 {[%emt 0:00:06]} d6 {[%emt 0:00:07]} 6. Nf3 {[%emt 0:01:07]} g6 {[%emt 0:00:25]} 7. Nd2 {[%emt 0:00:23]} Bg7 {[%emt 0:02:36]} 8. e4 {[%emt 0:00:29]} O-O {[%emt 0:00:26]} 9. Be2 {[%emt 0:00:21]} a6 {[%emt 0:02:34]} 10. a4 {[%emt 0:00:14]} Re8 {[%emt 0:00:33]} 11. O-O {[%emt 0:00:27]} Nbd7 {[%emt 0:00:28]} 12. Qc2 {[%emt 0:08:19]} Ne5 {[%emt 0:11:42]} 13. h3 {[%emt 0:11:21]} g5 {[%emt 0:07:38]} 1/2-1/2

[Event "CZE Extraliga 2019-20"]
[Site "Czech Republic"]
[Date "2019.12.01"]
[Round "4.8"]
[White "Hollan, Petr"]
[Black "Walek, Petr"]
[Result "1-0"]
[ECO "B78"]
[WhiteElo "2301"]
[BlackElo "2263"]
[Annotator "NA"]
[PlyCount "85"]
[EventDate "2019.09.15"]
[EventType "team-tourn"]
[EventCountry "CZE"]
[SourceTitle "playchess.com"]
[Source "ChessBase"]
[SourceQuality "1"]
[WhiteTeam "Kromeriz "]
[BlackTeam "Ostrava"]
[TimeControl "40/5400+30:1800+30"]

1. e4 {[%emt 0:00:00]} c5 {[%emt 0:00:00]} 2. Nf3 {[%emt 0:00:32]} g6 {[%emt 0:00:00]} 3. d4 {[%emt 0:00:11]} cxd4 {[%emt 0:00:00]} 4. Nxd4 {[%emt 0:00:05]} Bg7 {[%emt 0:00:07]} 5. Nc3 {[%emt 0:00:10]} Nc6 {[%emt 0:00:10]} 6. Be3 {[%emt 0:00:05]} Nf6 {[%emt 0:00:28]} 7. Bc4 {[%emt 0:00:05]} d6 {[%emt 0:02:20]} 8. f3 {[%emt 0:00:38]} O-O {[%emt 0:00:26]} 9. Qd2 {[%emt 0:00:24]} Bd7 {[%emt 0:00:09]} 10. O-O-O {[%emt 0:01:23]} Rb8 {[%emt 0:00:18]} 11. Bb3 {[%emt 0:00:11]} Na5 {[%emt 0:00:47]} 12. Kb1 {[%emt 0:01:44]} b5 {[%emt 0:00:38]} 13. h4 {[%emt 0:01:09]} Nc4 {[%emt 0:01:43]} 14. Bxc4 {[%emt 0:00:07]} bxc4 {[%emt 0:00:05]} 15. h5 {[%emt 0:00:28]} Qb6 {[%emt 0:08:15]} 16. b3 {[%emt 0:00:10]} Qb4 {[%emt 0:30:31]} 17. Bg5 {[%emt 0:00:10]} e6 {[%emt 0:01:41]} 18. Nde2 {[%emt 0:46:51]} cxb3 {[%emt 0:16:58]} 19. cxb3 {[%emt 0:00:57]} d5 {[%emt 0:03:44]} 20. e5 {[%emt 0:08:37]} Nxh5 {[%emt 0:06:25]} 21. g4 {[%emt 0:07:44]} Bxe5 {[%emt 0:03:09]} 22. gxh5 {[%emt 0:00:26]} Rfc8 {[%emt 0:00:41]} 23. hxg6 {[%emt 0:08:13]} hxg6 {[%emt 0:06:23]} 24. Ne4 {[%emt 0:10:19]} dxe4 {[%emt 0:03:34]} 25. Qxb4 {[%emt 0:01:26]} Rxb4 {[%emt 0:00:13]} 26. Rxd7 {[%emt 0:00:28]} exf3 {[%emt 0:00:41]} 27. Ng1 {[%emt 0:00:43]} f2 {[%emt 0:02:23]} 28. Nh3 {[%emt 0:00:53]} Rg4 {[%emt 0:07:11]} 29. Be3 {[%emt 0:04:16]} a5 {[%emt 0:04:51]} 30. Nxf2 {[%emt 0:01:32]} Rg2 {[%emt 0:00:13]} 31. Rd2 {[%emt 0:03:25]} Bg7 {[%emt 0:00:40]} 32. Ne4 {[%emt 0:00:57]} Rg4 {[%emt 0:00:08]} 33. Nd6 {[%emt 0:01:33]} Rf8 {[%emt 0:00:31]} 34. Rg1 {[%emt 0:00:30]} Rxg1+ {[%emt 0:00:52]} 35. Bxg1 {[%emt 0:00:01]} g5 {[%emt 0:00:16]} 36. Bb6 {[%emt 0:00:54]} Ra8 {[%emt 0:00:56]} 37. Nc4 {[%emt 0:00:32]} Kh7 {[%emt 0:00:30]} 38. Bxa5 {[%emt 0:00:13]} f5 {[%emt 0:00:28]} 39. Bc7 {[%emt 0:00:25]} f4 {[%emt 0:00:31]} 40. Rg2 {[%emt 0:00:39]} Kh6 {[%emt 0:00:32]} 41. Re2 {[%emt 0:02:12]} Re8 {[%emt 0:05:12]} 42. Nd6 {[%emt 0:00:51]} f3 {[%emt 0:01:01]} 43. Rh2+ {[%emt 0:01:53]} 1-0